fUST/lending_fUST_20250525
["ID","MTS","AMOUNT","RATE_DAILY","PERIOD"]
[362262563,1748125847879,-529.87,0.00024657,2]
[362262564,1748125847888,-430.0,0.00024657,2]
[362262565,1748125847898,-982.9873266,0.00024658,3]
[362262566,1748125847907,-188.1554807,0.00024658,2]
[362262567,1748125847916,-507.30167474,0.00024673,2]
[362262568,1748125847926,-500.0,0.00024673,2]
[362262569,1748125847936,-500.0,0.00024673,2]
[362262570,1748125847946,-500.0,0.00024673,2]
[362262571,1748125847955,-223.0315306,0.00024683,2]
[362262572,1748125847964,-151.0,0.00024688,2]
[362262573,1748125847974,-330710.71922505,0.000247,7]
[362262574,1748125847984,-5769.86,0.000247,7]
[362262575,1748125847993,-151.0,0.000247,7]
[362262576,1748125848003,-152.550699,0.000247,7]
[362262577,1748125848012,-156.4,0.000247,2]
[362262578,1748125848021,-151.0,0.000247,5]
[362262579,1748125848030,-450.0,0.000247,7]
[362262580,1748125848040,-450.0,0.000247,7]
[362262581,1748125848050,-151.0,0.000247,7]
[362262582,1748125848060,-201.098511,0.000247,7]
[362262583,1748125848072,-151.0,0.000247,7]
[362262584,1748125848081,-151.0,0.000247,7]
[362262585,1748125848091,-151.0,0.000247,7]
[362262586,1748125848100,-151.0,0.000247,7]
[362262587,1748125848110,-151.0,0.000247,7]
[362262588,1748125848120,-151.0,0.000247,7]
[362262589,1748125848130,-151.0,0.000247,7]
[362262590,1748125848138,-229.12393663,0.000247,7]
[362262591,1748125848149,-206.0,0.0002471,2]
[362262592,1748125848158,-206.0,0.0002471,2]
[362262593,1748125848168,-587.0,0.0002476,2]
[362262594,1748125848178,-46630.0,0.000248,2]
[362262595,1748125848187,-151.0,0.000248,10]
[362262596,1748125848197,-739.53571121,0.00024824,3]
[362262597,1748125848206,-5000.0,0.00024831,2]
[362262598,1748125848216,-500.0,0.00024873,2]
[362262599,1748125848225,-500.0,0.00024873,2]
[362262600,1748125848235,-0.94131765,0.00024899,3]
[362262603,1748126699951,158.426104,0.00013699,2]
[362262843,1748127037975,-545.69639288,0.000189,2]
[362262844,1748127037985,-360.10983373,0.00020128,2]
[362262845,1748127037994,-1200.0,0.00020484,2]
[362262846,1748127038004,-300.0,0.00020485,2]
[362262848,1748127038013,-300.0,0.00020485,2]
[362262849,1748127038023,-300.0,0.00020485,2]
[362262850,1748127038033,-300.0,0.00020485,2]
[362262851,1748127038042,-8419.2330009,0.00020486,2]
[362262852,1748127038051,-5000.0,0.00020486,2]
[362262853,1748127038061,-5000.0,0.00020486,2]
[362262854,1748127038070,-5000.0,0.00020486,2]
[362262855,1748127038079,-5000.0,0.00020486,2]
[362262856,1748127038089,-196.191768,0.00020945,2]
[362262857,1748127038098,-214.9809894,0.00021091,2]
[362262858,1748127038108,-160.0,0.00021841,2]
[362262859,1748127038117,-362.59147303,0.00021914,2]
[362262860,1748127038126,-218.81819079,0.00021914,2]
[362262861,1748127038136,-500.0,0.00021914,2]
[362262862,1748127038145,-495.30060969,0.00021914,2]
[362262863,1748127038154,-500.0,0.00021914,2]
[362262864,1748127038164,-500.0,0.00021914,2]
[362262865,1748127038174,-500.0,0.00021914,2]
[362262866,1748127038187,-195.56221427,0.00021914,2]
[362262867,1748127038196,-500.0,0.00021917,2]
[362262868,1748127038207,-430.0,0.00021917,2]
[362262869,1748127038216,-274.1686103,0.00021917,2]
[362262870,1748127038228,-430.0,0.00021917,2]
[362262871,1748127038239,-430.0,0.00021917,2]
[362262872,1748127038248,-430.0,0.00021917,2]
[362262873,1748127038257,-430.0,0.00021917,2]
[362262874,1748127038267,-430.0,0.00021917,2]
[362262875,1748127038276,-430.0,0.00021917,2]
[362262876,1748127038285,-327.36227462,0.00021917,2]
[362262877,1748127038295,-345.58150225,0.00021917,2]
[362262878,1748127038305,-430.0,0.00021917,2]
[362262879,1748127038314,-430.0,0.00021917,2]
[362262880,1748127038328,-411.02397448,0.00021917,2]
[362262881,1748127038338,-430.0,0.00021917,2]
[362262882,1748127038347,-430.0,0.00021917,2]
[362262883,1748127038356,-168.29192913,0.00021917,2]
[362262884,1748127038366,-430.0,0.00021917,2]
[362262885,1748127038375,-373.626,0.00021917,2]
[362262886,1748127038384,-577.93761537,0.00021917,2]
[362262887,1748127038394,-430.0,0.00021917,2]
[362262888,1748127038403,-430.0,0.00021917,2]
[362262889,1748127038412,-430.0,0.00021917,2]
[362262890,1748127038422,-430.0,0.00021917,2]
[362262891,1748127038432,-551.54855927,0.00021917,2]
[362262893,1748127038441,-370.69394591,0.00021917,2]
[362262895,1748127038451,-450.0,0.00021917,2]
[362262897,1748127038460,-430.0,0.00021917,2]
[362262898,1748127038470,-430.0,0.00021917,2]
[362262899,1748127038479,-430.0,0.00021917,2]
[362262900,1748127038489,-430.0,0.00021917,2]
[362262901,1748127038499,-316.58126201,0.00021917,2]
[362262902,1748127038509,-430.0,0.00021917,2]
[362262903,1748127038518,-430.0,0.00021917,2]
[362262905,1748127038527,-430.0,0.00021917,2]
[362262907,1748127038539,-430.0,0.00021917,2]
[362262908,1748127038548,-430.0,0.00021917,2]
[362262909,1748127038557,-450.0,0.00021917,2]
[362262910,1748127038567,-430.0,0.00021917,2]
[362262911,1748127038576,-500.0,0.00021917,2]
[362262913,1748127038585,-430.0,0.00021917,2]
[362262915,1748127038594,-430.0,0.00021917,2]
[362262917,1748127038604,-450.0,0.00021917,2]
[362262919,1748127038613,-430.0,0.00021917,2]
[362262921,1748127038622,-430.0,0.00021917,2]
[362262923,1748127038631,-430.0,0.00021917,2]
[362262925,1748127038641,-430.0,0.00021917,2]
[362262927,1748127038650,-361.0699374,0.00021917,2]
[362262929,1748127038659,-430.0,0.00021917,2]
[362262931,1748127038669,-430.0,0.00021917,2]
[362262933,1748127038679,-430.0,0.00021917,2]
[362262935,1748127038688,-430.0,0.00021917,2]
[362262937,1748127038697,-430.0,0.00021917,2]
[362262939,1748127038706,-430.0,0.00021917,2]
[362262941,1748127038716,-430.0,0.00021917,2]
[362262943,1748127038725,-430.0,0.00021917,2]
[362262945,1748127038734,-430.0,0.00021917,2]
[362262946,1748127038743,-430.0,0.00021917,2]
[362262947,1748127038753,-430.0,0.00021917,2]
[362262948,1748127038762,-430.0,0.00021917,2]
[362262949,1748127038771,-430.0,0.00021917,2]
[362262950,1748127038780,-430.0,0.00021917,2]
[362262951,1748127038789,-430.0,0.00021917,2]
[362262952,1748127038798,-430.0,0.00021917,2]
[362262953,1748127038808,-430.0,0.00021917,2]
[362262954,1748127038817,-430.0,0.00021917,2]
[362262955,1748127038826,-430.0,0.00021917,2]
[362262956,1748127038837,-430.0,0.00021917,2]
[362262957,1748127038847,-430.0,0.00021917,2]
[362262958,1748127038858,-430.0,0.00021917,2]
[362262959,1748127038867,-430.0,0.00021917,2]
[362262960,1748127038878,-430.0,0.00021917,2]
[362262961,1748127038887,-430.0,0.00021917,2]
[362262962,1748127038897,-430.0,0.00021917,2]
[362262963,1748127038907,-430.0,0.00021917,2]
[362262964,1748127038917,-450.0,0.00021917,2]
[362262965,1748127038927,-430.0,0.00021917,2]
[362262966,1748127038936,-430.0,0.00021917,2]
[362262967,1748127038946,-430.0,0.00021917,2]
[362262968,1748127038957,-430.0,0.00021917,2]
[362262969,1748127038967,-430.0,0.00021917,2]
[362262970,1748127038977,-450.0,0.00021917,2]
[362262971,1748127038987,-302.85,0.00021917,2]
[362262972,1748127038996,-430.0,0.00021917,2]
[362262973,1748127039006,-430.0,0.00021917,2]
[362262974,1748127039015,-450.0,0.00021917,2]
[362262975,1748127039025,-430.0,0.00021917,2]
[362262976,1748127039035,-430.0,0.00021917,2]
[362262977,1748127039044,-435.1301932,0.00021917,2]
[362262978,1748127039054,-389.66,0.00021917,2]
[362262979,1748127039063,-430.0,0.00021917,2]
[362262980,1748127039072,-352.57628775,0.00021917,2]
[362262981,1748127039082,-430.0,0.00021917,2]
[362262982,1748127039092,-430.0,0.00021917,2]
[362262983,1748127039101,-430.0,0.00021917,2]
[362262984,1748127039111,-430.0,0.00021917,2]
[362262985,1748127039121,-430.0,0.00021917,2]
[362262986,1748127039130,-430.0,0.00021917,2]
[362262987,1748127039139,-430.0,0.00021917,2]
[362262988,1748127039150,-430.0,0.00021917,2]
[362262989,1748127039159,-430.0,0.00021917,2]
[362262990,1748127039169,-430.0,0.00021917,2]
[362262992,1748127039180,-430.0,0.00021917,2]
[362262993,1748127039191,-430.0,0.00021917,2]
[362262994,1748127039200,-430.0,0.00021917,2]
[362262995,1748127039212,-430.0,0.00021917,2]
[362262996,1748127039224,-430.0,0.00021917,2]
[362262997,1748127039235,-430.0,0.00021917,2]
[362262998,1748127039245,-430.0,0.00021917,2]
[362262999,1748127039256,-430.0,0.00021917,2]
[362263000,1748127039266,-430.0,0.00021917,2]
[362263001,1748127039276,-430.0,0.00021917,2]
[362263002,1748127039287,-430.0,0.00021917,2]
[362263003,1748127039297,-430.0,0.00021917,2]
[362263005,1748127039307,-379.74458671,0.00021917,2]
[362263006,1748127039317,-430.0,0.00021917,2]
[362263007,1748127039327,-430.0,0.00021917,2]
[362263008,1748127039337,-485.0,0.00021917,2]
[362263009,1748127039347,-430.0,0.00021917,2]
[362263010,1748127039357,-1847.49,0.00021917,2]
[362263011,1748127039366,-430.0,0.00021917,2]
[362263012,1748127039376,-445.25,0.00021917,2]
[362263014,1748127039386,-430.0,0.00021917,2]
[362263015,1748127039395,-430.0,0.00021917,2]
[362263016,1748127039404,-430.0,0.00021917,2]
[362263017,1748127039414,-1701.17,0.00021917,2]
[362263018,1748127039423,-430.0,0.00021917,2]
[362263019,1748127039433,-430.0,0.00021917,2]
[362263020,1748127039442,-430.0,0.00021917,2]
[362263021,1748127039452,-450.0,0.00021917,2]
[362263022,1748127039462,-430.0,0.00021917,2]
[362263023,1748127039471,-430.0,0.00021917,2]
[362263024,1748127039480,-430.0,0.00021917,2]
[362263025,1748127039489,-430.0,0.00021917,2]
[362263026,1748127039499,-430.0,0.00021917,2]
[362263027,1748127039511,-967.02,0.00021917,2]
[362263028,1748127039521,-1876.42,0.00021917,2]
[362263029,1748127039530,-430.0,0.00021917,2]
[362263030,1748127039540,-430.0,0.00021917,2]
[362263031,1748127039549,-456.3,0.00021917,2]
[362263033,1748127039559,-430.0,0.00021917,2]
[362263035,1748127039569,-222.0,0.00021917,2]
[362263037,1748127039580,-912.13,0.00021917,2]
[362263038,1748127039590,-430.0,0.00021917,2]
[362263040,1748127039600,-347.03,0.00021917,2]
[362263041,1748127039609,-547.81,0.00021917,2]
[362263042,1748127039619,-474.63,0.00021917,2]
[362263043,1748127039630,-430.0,0.00021917,2]
[362263044,1748127039641,-430.0,0.00021917,2]
[362263045,1748127039651,-430.0,0.00021917,2]
[362263046,1748127039661,-430.0,0.00021917,2]
[362263047,1748127039672,-430.0,0.00021917,2]
[362263048,1748127039682,-430.0,0.00021917,2]
[362263049,1748127039692,-430.0,0.00021917,2]
[362263050,1748127039702,-430.0,0.00021917,2]
[362263052,1748127039711,-430.0,0.00021917,2]
[362263054,1748127039721,-450.0,0.00021917,2]
[362263055,1748127039731,-430.0,0.00021917,2]
[362263056,1748127039740,-430.0,0.00021917,2]
[362263057,1748127039749,-430.0,0.00021917,2]
[362263058,1748127039759,-430.0,0.00021917,2]
[362263059,1748127039768,-470.0,0.00021917,2]
[362263060,1748127039778,-430.0,0.00021917,2]
[362263061,1748127039788,-413.42105719,0.00021917,2]
[362263062,1748127039797,-430.0,0.00021917,2]
[362263063,1748127039806,-430.0,0.00021917,2]
[362263064,1748127039816,-1043.35,0.00021917,2]
[362263065,1748127039826,-168.20739108,0.00021917,2]
[362263066,1748127039835,-618.58,0.00021917,2]
[362263067,1748127039844,-430.0,0.00021917,2]
[362263068,1748127039854,-450.0,0.00021917,2]
[362263069,1748127039874,-318.53186603,0.00021917,2]
[362263070,1748127039884,-614.66,0.00021917,2]
[362263071,1748127039894,-430.0,0.00021917,2]
[362263073,1748127039904,-430.0,0.00021917,2]
[362263074,1748127039914,-430.0,0.00021917,2]
[362263075,1748127039926,-430.0,0.00021917,2]
[362263076,1748127039936,-430.0,0.00021917,2]
[362263077,1748127039947,-430.0,0.00021917,2]
[362263078,1748127039956,-430.0,0.00021917,2]
[362263079,1748127039968,-500.0,0.00021917,2]
[362263080,1748127039978,-158.426104,0.00021918,2]
[362263081,1748127039989,-207.4,0.00021945,2]
[362263082,1748127039999,-218.0,0.00022,2]
[362263083,1748127040009,-700.0,0.00022064,2]
[362263084,1748127040019,-254.93280704,0.00022074,2]
[362263085,1748127040030,-430.0,0.00022191,2]
[362263086,1748127040040,-430.0,0.00022191,2]
[362263087,1748127040049,-430.0,0.00022191,2]
[362263088,1748127040059,-430.0,0.00022191,2]
[362263089,1748127040070,-213.28876023,0.00022191,2]
[362263090,1748127040079,-430.0,0.00022191,2]
[362263091,1748127040089,-430.0,0.00022191,2]
[362263092,1748127040099,-430.0,0.00022191,2]
[362263093,1748127040108,-430.0,0.00022191,2]
[362263094,1748127040119,-430.0,0.00022191,2]
[362263095,1748127040128,-430.0,0.00022191,2]
[362263096,1748127040138,-430.0,0.00022191,2]
[362263097,1748127040147,-514.57,0.00022191,2]
[362263098,1748127040156,-430.0,0.00022191,2]
[362263099,1748127040166,-430.0,0.00022191,2]
[362263100,1748127040178,-430.0,0.00022191,2]
[362263101,1748127040187,-500.0,0.00022191,2]
[362263102,1748127040197,-430.0,0.00022191,2]
[362263103,1748127040207,-430.0,0.00022191,2]
[362263104,1748127040217,-430.0,0.00022191,2]
[362263105,1748127040226,-430.0,0.00022191,2]
[362263106,1748127040236,-430.0,0.00022191,2]
[362263107,1748127040246,-430.0,0.00022191,2]
[362263108,1748127040255,-430.0,0.00022191,2]
[362263109,1748127040265,-430.0,0.00022191,2]
[362263110,1748127040275,-450.0,0.00022191,2]
[362263111,1748127040285,-430.0,0.00022191,2]
[362263112,1748127040294,-430.0,0.00022191,2]
[362263113,1748127040305,-430.0,0.00022191,2]
[362263114,1748127040314,-430.0,0.00022191,2]
[362263115,1748127040324,-430.0,0.00022191,2]
[362263116,1748127040334,-430.0,0.00022191,2]
[362263117,1748127040343,-430.0,0.00022191,2]
[362263118,1748127040352,-430.0,0.00022191,2]
[362263119,1748127040362,-430.0,0.00022191,2]
[362263120,1748127040526,-430.0,0.00022191,2]
[362263121,1748127040536,-430.0,0.00022191,2]
[362263122,1748127040546,-430.0,0.00022191,2]
[362263123,1748127040557,-430.0,0.00022191,2]
[362263124,1748127040567,-430.0,0.00022191,2]
[362263125,1748127040576,-430.0,0.00022191,2]
[362263126,1748127040586,-430.0,0.00022191,2]
[362263127,1748127040596,-430.0,0.00022191,2]
[362263128,1748127040605,-450.0,0.00022191,2]
[362263129,1748127040614,-228.86,0.00022191,2]
[362263130,1748127040624,-430.0,0.00022191,2]
[362263131,1748127040634,-430.0,0.00022191,2]
[362263132,1748127040643,-430.0,0.00022191,2]
[362263133,1748127040653,-430.0,0.00022191,2]
[362263134,1748127040662,-353.36828184,0.00022191,2]
[362263135,1748127040672,-430.0,0.00022191,2]
[362263136,1748127040682,-430.0,0.00022191,2]
[362263137,1748127040693,-430.0,0.00022191,2]
[362263138,1748127040704,-430.0,0.00022191,2]
[362263139,1748127040714,-430.0,0.00022191,2]
[362263140,1748127040724,-430.0,0.00022191,2]
[362263141,1748127040734,-430.0,0.00022191,2]
[362263142,1748127040744,-430.0,0.00022191,2]
[362263143,1748127040754,-430.0,0.00022191,2]
[362263144,1748127040763,-430.0,0.00022191,2]
[362263145,1748127040773,-1847.49,0.00022191,2]
[362263146,1748127040783,-430.0,0.00022191,2]
[362263147,1748127040793,-445.25,0.00022191,2]
[362263148,1748127040803,-430.0,0.00022191,2]
[362263149,1748127040813,-430.0,0.00022191,2]
[362263150,1748127040823,-414.1,0.00022191,2]
[362263151,1748127040833,-1701.17,0.00022191,2]
[362263152,1748127040842,-430.0,0.00022191,2]
[362263153,1748127040852,-430.0,0.00022191,2]
[362263154,1748127040862,-430.0,0.00022191,2]
[362263155,1748127040871,-430.0,0.00022191,2]
[362263156,1748127040885,-430.0,0.00022191,2]
[362263157,1748127040895,-430.0,0.00022191,2]
[362263158,1748127040905,-967.02,0.00022191,2]
[362263159,1748127040915,-430.0,0.00022191,2]
[362263160,1748127040925,-912.13,0.00022191,2]
[362263161,1748127040935,-547.81,0.00022191,2]
[362263162,1748127040945,-474.63,0.00022191,2]
[362263163,1748127040955,-430.0,0.00022191,2]
[362263164,1748127040964,-430.0,0.00022191,2]
[362263165,1748127040974,-430.0,0.00022191,2]
[362263166,1748127040983,-515.71,0.00022191,2]
[362263167,1748127040993,-430.0,0.00022191,2]
[362263168,1748127041006,-430.0,0.00022191,2]
[362263169,1748127041015,-430.0,0.00022191,2]
[362263170,1748127041026,-430.0,0.00022191,2]
[362263171,1748127041036,-430.0,0.00022191,2]
[362263172,1748127041046,-430.0,0.00022191,2]
[362263173,1748127041056,-432.54176734,0.00022191,2]
[362263174,1748127041067,-430.0,0.00022191,2]
[362263175,1748127041076,-430.0,0.00022191,2]
[362263176,1748127041086,-1043.35,0.00022191,2]
[362263177,1748127041095,-618.58,0.00022191,2]
[362263178,1748127041105,-430.0,0.00022191,2]
[362263179,1748127041115,-614.66,0.00022191,2]
[362263180,1748127041125,-430.0,0.00022191,2]
[362263181,1748127041135,-430.0,0.00022191,2]
[362263182,1748127041144,-430.0,0.00022191,2]
[362263183,1748127041154,-430.0,0.00022191,2]
[362263184,1748127041163,-430.0,0.00022191,2]
[362263185,1748127041173,-430.0,0.00022191,2]
[362263186,1748127041184,-500.0,0.0002227,2]
[362263187,1748127041194,-420.0,0.00022294,2]
[362263188,1748127041204,-420.0,0.00022294,2]
[362263189,1748127041216,-500.0,0.00022374,2]
[362263190,1748127041225,-500.0,0.00022374,2]
[362263191,1748127041234,-423.38314627,0.00022393,2]
[362263192,1748127041244,-500.0,0.00022393,2]
[362263193,1748127041254,-501.31626111,0.00022394,2]
[362263194,1748127041264,-12649.97184255,0.00022452,2]
[362263195,1748127041273,-212.4501065,0.00022453,2]
[362263196,1748127041283,-894.64583333,0.00022453,2]
[362263197,1748127041293,-160.0,0.00022453,2]
[362263198,1748127041303,-422.929492,0.00022453,2]
[362263199,1748127041314,-229.12393663,0.00022453,2]
[362263200,1748127041323,-160.0,0.00022453,2]
[362263201,1748127041333,-160.0,0.00022453,2]
[362263202,1748127041343,-1088.48,0.00022465,2]
[362263203,1748127041355,-304.32731527,0.00022465,2]
[362263204,1748127041365,-430.0,0.00022465,2]
[362263205,1748127041374,-430.0,0.00022465,2]
[362263206,1748127041384,-430.0,0.00022465,2]
[362263207,1748127041393,-323.58,0.00022465,2]
[362263208,1748127041403,-430.0,0.00022465,2]
[362263209,1748127041412,-301.19703193,0.00022465,2]
[362263210,1748127041421,-430.0,0.00022465,2]
[362263211,1748127041431,-430.0,0.00022465,2]
[362263212,1748127041440,-430.0,0.00022465,2]
[362263213,1748127041449,-430.0,0.00022465,2]
[362263214,1748127041458,-430.0,0.00022465,2]
[362263215,1748127041467,-290.0,0.00022465,2]
[362263216,1748127041477,-430.0,0.00022465,2]
[362263217,1748127041486,-430.0,0.00022465,2]
[362263218,1748127041496,-430.0,0.00022465,2]
[362263219,1748127041505,-430.0,0.00022465,2]
[362263220,1748127041515,-430.0,0.00022465,2]
[362263221,1748127041524,-430.0,0.00022465,2]
[362263222,1748127041533,-341.2,0.00022465,2]
[362263223,1748127041543,-430.0,0.00022465,2]
[362263224,1748127041552,-430.0,0.00022465,2]
[362263225,1748127041561,-430.0,0.00022465,2]
[362263226,1748127041570,-430.0,0.00022465,2]
[362263227,1748127041580,-159.06354333,0.00022465,2]
[362263228,1748127041589,-430.0,0.00022465,2]
[362263229,1748127041599,-430.0,0.00022465,2]
[362263230,1748127041609,-497.66,0.00022465,2]
[362263231,1748127041618,-430.0,0.00022465,2]
[362263232,1748127041627,-1847.49,0.00022465,2]
[362263233,1748127041637,-430.0,0.00022465,2]
[362263234,1748127041647,-445.25,0.00022465,2]
[362263235,1748127041657,-430.0,0.00022465,2]
[362263236,1748127041666,-1701.17,0.00022465,2]
[362263238,1748127041676,-430.0,0.00022465,2]
[362263239,1748127041685,-430.0,0.00022465,2]
[362263240,1748127041694,-450.0,0.00022465,2]
[362263241,1748127041704,-967.02,0.00022465,2]
[362263242,1748127041714,-430.0,0.00022465,2]
[362263243,1748127041724,-912.13,0.00022465,2]
[362263244,1748127041734,-547.81,0.00022465,2]
[362263245,1748127041745,-474.63,0.00022465,2]
[362263246,1748127041761,-430.0,0.00022465,2]
[362263247,1748127041770,-578.44,0.00022465,2]
[362263248,1748127041780,-430.0,0.00022465,2]
[362263249,1748127041790,-430.0,0.00022465,2]
[362263250,1748127041800,-430.0,0.00022465,2]
[362263251,1748127041809,-430.0,0.00022465,2]
[362263252,1748127041819,-430.0,0.00022465,2]
[362263253,1748127041828,-430.0,0.00022465,2]
[362263254,1748127041838,-1043.35,0.00022465,2]
[362263255,1748127041847,-618.58,0.00022465,2]
[362263256,1748127041856,-430.0,0.00022465,2]
[362263257,1748127041866,-614.66,0.00022465,2]
[362263258,1748127041875,-430.0,0.00022465,2]
[362263259,1748127041884,-430.0,0.00022465,2]
[362263260,1748127041895,-214.72,0.00022465,2]
[362263261,1748127041904,-500.0,0.00022506,2]
[362263262,1748127041913,-500.0,0.00022533,2]
[362263263,1748127041922,-450.0,0.00022739,2]
[362263264,1748127041934,-430.0,0.00022739,2]
[362263265,1748127041947,-430.0,0.00022739,2]
[362263266,1748127041956,-430.0,0.00022739,2]
[362263267,1748127041969,-550.0,0.00022739,2]
[362263268,1748127041979,-430.0,0.00022739,2]
[362263269,1748127041989,-430.0,0.00022739,2]
[362263270,1748127041999,-430.0,0.00022739,2]
[362263271,1748127042008,-430.0,0.00022739,2]
[362263272,1748127042018,-430.0,0.00022739,2]
[362263273,1748127042028,-430.0,0.00022739,2]
[362263274,1748127042038,-1847.49,0.00022739,2]
[362263275,1748127042049,-430.0,0.00022739,2]
[362263276,1748127042058,-445.25,0.00022739,2]
[362263277,1748127042067,-430.0,0.00022739,2]
[362263278,1748127042077,-1701.17,0.00022739,2]
[362263279,1748127042086,-430.0,0.00022739,2]
[362263280,1748127042095,-967.02,0.00022739,2]
[362263281,1748127042105,-530.65,0.00022739,2]
[362263282,1748127042115,-912.13,0.00022739,2]
[362263283,1748127042124,-547.81,0.00022739,2]
[362263284,1748127042134,-474.63,0.00022739,2]
[362263285,1748127042143,-430.0,0.00022739,2]
[362263286,1748127042152,-430.0,0.00022739,2]
[362263287,1748127042161,-430.0,0.00022739,2]
[362263288,1748127042171,-430.0,0.00022739,2]
[362263289,1748127042180,-430.0,0.00022739,2]
[362263290,1748127042190,-430.0,0.00022739,2]
[362263291,1748127042200,-557.2406604,0.00022739,2]
[362263292,1748127042210,-1043.35,0.00022739,2]
[362263293,1748127042219,-618.58,0.00022739,2]
[362263294,1748127042228,-614.66,0.00022739,2]
[362263295,1748127042237,-430.0,0.00022739,2]
[362263296,1748127042247,-430.0,0.00022739,2]
[362263297,1748127042256,-300.0,0.00022798,2]
[362263298,1748127042266,-500.0,0.00022818,2]
[362263299,1748127042275,-500.0,0.00022941,2]
[362263300,1748127042284,-430.0,0.00023013,2]
[362263302,1748127042293,-274.05,0.00023013,2]
[362263303,1748127042302,-290.37346679,0.00023013,2]
[362263304,1748127042312,-437.84453398,0.00023013,2]
[362263305,1748127042321,-430.0,0.00023013,2]
[362263306,1748127042330,-430.0,0.00023013,2]
[362263307,1748127042340,-430.0,0.00023013,2]
[362263308,1748127042349,-1847.49,0.00023013,2]
[362263309,1748127042358,-435.25,0.00023013,2]
[362263310,1748127042367,-445.25,0.00023013,2]
[362263311,1748127042376,-430.0,0.00023013,2]
[362263312,1748127042387,-1701.17,0.00023013,2]
[362263313,1748127042398,-430.0,0.00023013,2]
[362263314,1748127042408,-967.02,0.00023013,2]
[362263315,1748127042418,-912.13,0.00023013,2]
[362263316,1748127042427,-547.81,0.00023013,2]
[362263317,1748127042436,-474.63,0.00023013,2]
[362263318,1748127042446,-430.0,0.00023013,2]
[362263319,1748127042456,-430.0,0.00023013,2]
[362263320,1748127042467,-430.0,0.00023013,2]
[362263321,1748127042477,-430.0,0.00023013,2]
[362263322,1748127042487,-430.0,0.00023013,2]
[362263323,1748127042496,-430.0,0.00023013,2]
[362263324,1748127042506,-1043.35,0.00023013,2]
[362263325,1748127042517,-618.58,0.00023013,2]
[362263326,1748127042527,-614.66,0.00023013,2]
[362263327,1748127042536,-430.0,0.00023013,2]
[362263328,1748127042546,-430.0,0.00023013,2]
[362263329,1748127042555,-500.0,0.00023054,2]
[362263330,1748127042564,-700.0,0.0002316,2]
[362263331,1748127042574,-500.0,0.00023282,2]
[362263332,1748127042583,-500.0,0.00023282,2]
[362263333,1748127042593,-500.0,0.00023282,2]
[362263334,1748127042604,-500.0,0.00023282,2]
[362263335,1748127042614,-500.0,0.00023282,2]
[362263336,1748127042624,-615.57926183,0.00023282,2]
[362263337,1748127042633,-524.47267691,0.00023282,2]
[362263338,1748127042642,-500.0,0.00023282,2]